[Event "Titled Tuesday Blitz August 08 Early 2023"]
[White "Kirillov, Dmitry"]
[Black "Thecourseoisildur"]
[WhiteFideId "34180572"]
[WhiteElo "2476"]
[BlackElo "2602"]
[Result "1-0"]
[Round "11"]
[TimeControl "180+1"]
[Date "2023.08.08"]
[WhiteClock "0:01:32"]
[BlackClock "0:00:00"]
[Board "62"]

1. e4 {[%clk 0:03:00]}  e5 {[%clk 0:02:56]} 2. Nf3 {[%clk 0:03:00]}  Nc6 {[%clk 0:02:57]} 3. d4 {[%clk 0:02:58]}  exd4 {[%clk 0:02:57]} 4. c3 {[%clk 0:02:59]}  dxc3 {[%clk 0:02:46]} 5. Nxc3 {[%clk 0:02:59]}  Bb4 {[%clk 0:02:38]} 6. Bc4 {[%clk 0:03:00]}  Nge7 {[%clk 0:02:30]} 7. Ng5 {[%clk 0:02:59]}  Ne5 {[%clk 0:02:13]} 8. Bb3 {[%clk 0:02:58]}  Bxc3+ {[%clk 0:01:51]} 9. bxc3 {[%clk 0:02:58]}  h6 {[%clk 0:01:35]} 10. f4 {[%clk 0:02:57]}  hxg5 {[%clk 0:01:06]} 11. fxe5 {[%clk 0:02:53]}  d6 {[%clk 0:01:03]} 12. O-O {[%clk 0:02:47]}  Be6 {[%clk 0:01:02]} 13. Bxe6 {[%clk 0:02:39]}  fxe6 {[%clk 0:01:02]} 14. Qf3 {[%clk 0:02:40]}  Kd7 {[%clk 0:00:47]} 15. Bxg5 {[%clk 0:02:34]}  Rf8 {[%clk 0:00:33]} 16. Qg3 {[%clk 0:02:34]}  Qe8 {[%clk 0:00:28]} 17. Rfd1 {[%clk 0:02:31]}  Nc8 {[%clk 0:00:26]} 18. exd6 {[%clk 0:02:30]}  cxd6 {[%clk 0:00:27]} 19. c4 {[%clk 0:02:28]}  b6 {[%clk 0:00:19]} 20. Rac1 {[%clk 0:02:26]}  Qf7 {[%clk 0:00:18]} 21. c5 {[%clk 0:02:13]}  bxc5 {[%clk 0:00:17]} 22. Rxc5 {[%clk 0:02:13]}  Qh5 {[%clk 0:00:06]} 23. Rcc1 {[%clk 0:02:07]}  e5 {[%clk 0:00:02]} 24. Qxe5 {[%clk 0:01:57]}  Qf7 {[%clk 0:00:02]} 25. Qb5+ {[%clk 0:01:54]}  Ke6 {[%clk 0:00:02]} 26. Qd5+ {[%clk 0:01:53]}  Kd7 {[%clk 0:00:03]} 27. Qb7+ {[%clk 0:01:33]}  Ke6 {[%clk 0:00:02]} 28. Qxa8 {[%clk 0:01:32]}  Qf2+ {[%clk 0:00:02]} 29. Kh1 {[%clk 0:01:33]}  Qxa2 {[%clk 0:00:00]} 30. Qd5+ {[%clk 0:01:32]} 1-0


[Site "https://www.chess.com"]

[Event "Titled Tuesday Blitz August 08 Early 2023"]
[White "Molina, Roberto Junio Brito"]
[Black "Shukhman, Anna"]
[WhiteFideId "2109450"]
[BlackFideId "54180058"]
[WhiteElo "2819"]
[BlackElo "2543"]
[Result "0-1"]
[Round "11"]
[TimeControl "180+1"]
[Date "2023.08.08"]
[WhiteClock "0:00:05"]
[BlackClock "0:00:06"]
[Board "63"]

1. e4 {[%clk 0:03:00]}  c5 {[%clk 0:02:58]} 2. Nf3 {[%clk 0:03:01]}  a6 {[%clk 0:02:59]} 3. c4 {[%clk 0:03:00]}  Nc6 {[%clk 0:02:58]} 4. d4 {[%clk 0:02:59]}  cxd4 {[%clk 0:02:58]} 5. Nxd4 {[%clk 0:03:00]}  Nf6 {[%clk 0:02:56]} 6. Nc3 {[%clk 0:03:00]}  e5 {[%clk 0:02:56]} 7. Nc2 {[%clk 0:02:59]}  Bc5 {[%clk 0:02:54]} 8. Be2 {[%clk 0:02:59]}  O-O {[%clk 0:02:53]} 9. O-O {[%clk 0:02:59]}  h6 {[%clk 0:02:53]} 10. Kh1 {[%clk 0:02:58]}  d6 {[%clk 0:02:50]} 11. a3 {[%clk 0:02:57]}  Be6 {[%clk 0:02:45]} 12. b4 {[%clk 0:02:55]}  Bd4 {[%clk 0:02:44]} 13. Nxd4 {[%clk 0:02:51]}  Nxd4 {[%clk 0:02:45]} 14. Bd3 {[%clk 0:02:44]}  Rc8 {[%clk 0:02:44]} 15. Nd5 {[%clk 0:02:44]}  Bxd5 {[%clk 0:02:39]} 16. cxd5 {[%clk 0:02:36]}  a5 {[%clk 0:02:11]} 17. Rb1 {[%clk 0:02:30]}  axb4 {[%clk 0:02:02]} 18. Rxb4 {[%clk 0:02:25]}  Nd7 {[%clk 0:02:02]} 19. Bb2 {[%clk 0:02:21]}  Qa5 {[%clk 0:01:53]} 20. Bb1 {[%clk 0:02:13]}  Rc7 {[%clk 0:01:41]} 21. f4 {[%clk 0:02:11]}  Rfc8 {[%clk 0:01:39]} 22. h3 {[%clk 0:02:10]}  Nb5 {[%clk 0:01:24]} 23. Qd3 {[%clk 0:01:59]}  Nc3 {[%clk 0:01:21]} 24. fxe5 {[%clk 0:01:43]}  Nxe5 {[%clk 0:01:18]} 25. Qg3 {[%clk 0:01:40]}  Qa6 {[%clk 0:01:08]} 26. Re1 {[%clk 0:01:35]}  Nxb1 {[%clk 0:00:51]} 27. Rxb1 {[%clk 0:01:35]}  Qe2 {[%clk 0:00:45]} 28. Bxe5 {[%clk 0:01:28]}  dxe5 {[%clk 0:00:39]} 29. Qxe5 {[%clk 0:01:18]}  Rc1+ {[%clk 0:00:37]} 30. Kh2 {[%clk 0:01:17]}  Qe1 {[%clk 0:00:36]} 31. Rxc1 {[%clk 0:01:15]}  Rxc1 {[%clk 0:00:34]} 32. Qe8+ {[%clk 0:00:56]}  Kh7 {[%clk 0:00:33]} 33. Qxf7 {[%clk 0:00:57]}  Qg1+ {[%clk 0:00:31]} 34. Kg3 {[%clk 0:00:57]}  Rc3+ {[%clk 0:00:30]} 35. Kh4 {[%clk 0:00:54]}  Qe1+ {[%clk 0:00:21]} 36. Kh5 {[%clk 0:00:40]}  Qe2+ {[%clk 0:00:20]} 37. Kh4 {[%clk 0:00:38]}  Qe1+ {[%clk 0:00:20]} 38. Kh5 {[%clk 0:00:38]}  Rg3 {[%clk 0:00:09]} 39. Rxb7 {[%clk 0:00:31]}  Qxe4 {[%clk 0:00:08]} 40. Qe7 {[%clk 0:00:09]}  Rg5+ {[%clk 0:00:06]} 41. Qxg5 {[%clk 0:00:09]}  hxg5 {[%clk 0:00:07]} 42. Rb4 {[%clk 0:00:09]}  Qxd5 {[%clk 0:00:07]} 43. Rg4 {[%clk 0:00:05]}  g6# {[%clk 0:00:06]} 0-1


[Site "https://www.chess.com"]

[Event "Titled Tuesday Blitz August 08 Early 2023"]
[White "Sethuraman, S.P."]
[Black "Eynullayev, Atilla"]
[WhiteFideId "5021596"]
[BlackFideId "13413570"]
[WhiteElo "2779"]
[BlackElo "2540"]
[Result "0-1"]
[Round "11"]
[TimeControl "180+1"]
[Date "2023.08.08"]
[WhiteClock "0:00:21"]
[BlackClock "0:01:21"]
[Board "64"]

1. d4 {[%clk 0:03:00]}  Nf6 {[%clk 0:02:59]} 2. Nc3 {[%clk 0:03:01]}  d5 {[%clk 0:02:59]} 3. Bf4 {[%clk 0:03:01]}  e6 {[%clk 0:03:00]} 4. Nb5 {[%clk 0:03:00]}  Bb4+ {[%clk 0:03:00]} 5. c3 {[%clk 0:03:00]}  Ba5 {[%clk 0:03:01]} 6. a4 {[%clk 0:03:00]}  a6 {[%clk 0:03:01]} 7. b4 {[%clk 0:03:00]}  Bxb4 {[%clk 0:03:01]} 8. cxb4 {[%clk 0:02:59]}  axb5 {[%clk 0:03:02]} 9. axb5 {[%clk 0:03:00]}  Rxa1 {[%clk 0:03:03]} 10. Qxa1 {[%clk 0:03:00]}  O-O {[%clk 0:03:03]} 11. e3 {[%clk 0:02:56]}  Nbd7 {[%clk 0:03:04]} 12. Qc3 {[%clk 0:02:47]}  Ne4 {[%clk 0:02:47]} 13. Qxc7 {[%clk 0:02:11]}  Qe7 {[%clk 0:02:47]} 14. Qa5 {[%clk 0:02:11]}  b6 {[%clk 0:02:13]} 15. Qa3 {[%clk 0:02:10]}  Bb7 {[%clk 0:02:13]} 16. f3 {[%clk 0:02:09]}  Ra8 {[%clk 0:02:14]} 17. Qb2 {[%clk 0:02:09]}  Ra1+ {[%clk 0:02:00]} 18. Ke2 {[%clk 0:01:48]}  Ra2 {[%clk 0:02:00]} 19. Qxa2 {[%clk 0:01:26]}  Nc3+ {[%clk 0:02:00]} 20. Kf2 {[%clk 0:01:27]}  Nxa2 {[%clk 0:02:01]} 21. Be2 {[%clk 0:01:25]}  Nxb4 {[%clk 0:02:00]} 22. Nh3 {[%clk 0:01:24]}  e5 {[%clk 0:01:50]} 23. dxe5 {[%clk 0:01:17]}  Nxe5 {[%clk 0:01:49]} 24. Rd1 {[%clk 0:01:18]}  f6 {[%clk 0:01:47]} 25. Kg1 {[%clk 0:01:11]}  Qc5 {[%clk 0:01:36]} 26. Nf2 {[%clk 0:01:03]}  g5 {[%clk 0:01:35]} 27. Bg3 {[%clk 0:00:48]}  Qxe3 {[%clk 0:01:35]} 28. Bf1 {[%clk 0:00:48]}  h5 {[%clk 0:01:29]} 29. Ra1 {[%clk 0:00:40]}  h4 {[%clk 0:01:28]} 30. Bxe5 {[%clk 0:00:40]}  fxe5 {[%clk 0:01:28]} 31. Ra7 {[%clk 0:00:39]}  Bc8 {[%clk 0:01:23]} 32. Ra8 {[%clk 0:00:36]}  Qc5 {[%clk 0:01:23]} 33. h3 {[%clk 0:00:34]}  e4 {[%clk 0:01:22]} 34. fxe4 {[%clk 0:00:30]}  dxe4 {[%clk 0:01:22]} 35. Be2 {[%clk 0:00:28]}  Nd3 {[%clk 0:01:23]} 36. Bxd3 {[%clk 0:00:24]}  exd3 {[%clk 0:01:22]} 37. Kf1 {[%clk 0:00:24]}  d2 {[%clk 0:01:22]} 38. Ke2 {[%clk 0:00:24]}  Qe5+ {[%clk 0:01:19]} 39. Kxd2 {[%clk 0:00:23]}  Qd5+ {[%clk 0:01:20]} 40. Nd3 {[%clk 0:00:21]}  Qxa8 {[%clk 0:01:21]} 0-1


[Site "https://www.chess.com"]

[Event "Titled Tuesday Blitz August 08 Early 2023"]
[White "Palczert, Matyas"]
[Black "Srihari L R"]
[WhiteFideId "784958"]
[BlackFideId "46617116"]
[WhiteElo "2524"]
[BlackElo "2743"]
[Result "1-0"]
[Round "11"]
[TimeControl "180+1"]
[Date "2023.08.08"]
[WhiteClock "0:01:24"]
[BlackClock "0:00:00"]
[Board "65"]

1. e4 {[%clk 0:03:00]}  e6 {[%clk 0:02:55]} 2. d4 {[%clk 0:02:59]}  d5 {[%clk 0:02:55]} 3. Nc3 {[%clk 0:02:59]}  Nf6 {[%clk 0:02:53]} 4. e5 {[%clk 0:02:58]}  Nfd7 {[%clk 0:02:53]} 5. f4 {[%clk 0:02:59]}  c5 {[%clk 0:02:53]} 6. Nf3 {[%clk 0:02:59]}  Nc6 {[%clk 0:02:54]} 7. Be3 {[%clk 0:03:00]}  a6 {[%clk 0:02:54]} 8. Qd2 {[%clk 0:02:59]}  b5 {[%clk 0:02:53]} 9. dxc5 {[%clk 0:02:56]}  Bxc5 {[%clk 0:02:53]} 10. Bd3 {[%clk 0:02:52]}  Qb6 {[%clk 0:02:21]} 11. Bf2 {[%clk 0:02:51]}  Bb7 {[%clk 0:02:20]} 12. a3 {[%clk 0:02:49]}  Rc8 {[%clk 0:02:20]} 13. O-O {[%clk 0:02:48]}  g6 {[%clk 0:02:07]} 14. Rae1 {[%clk 0:02:44]}  Bxf2+ {[%clk 0:02:05]} 15. Rxf2 {[%clk 0:02:44]}  b4 {[%clk 0:02:02]} 16. axb4 {[%clk 0:02:41]}  Nxb4 {[%clk 0:02:01]} 17. Ne2 {[%clk 0:02:20]}  Nc5 {[%clk 0:01:53]} 18. Ned4 {[%clk 0:02:14]}  O-O {[%clk 0:01:52]} 19. h4 {[%clk 0:02:08]}  Rfd8 {[%clk 0:01:50]} 20. h5 {[%clk 0:02:07]}  Ne4 {[%clk 0:01:49]} 21. Qe3 {[%clk 0:01:59]}  Nxf2 {[%clk 0:01:48]} 22. Qxf2 {[%clk 0:01:59]}  Nxd3 {[%clk 0:01:48]} 23. cxd3 {[%clk 0:01:59]}  gxh5 {[%clk 0:01:07]} 24. Qh4 {[%clk 0:01:58]}  Qxb2 {[%clk 0:00:50]} 25. Qxh5 {[%clk 0:01:49]}  Rd7 {[%clk 0:00:46]} 26. Kh2 {[%clk 0:01:43]}  Rc1 {[%clk 0:00:41]} 27. Re2 {[%clk 0:01:40]}  Qb6 {[%clk 0:00:37]} 28. f5 {[%clk 0:01:31]}  exf5 {[%clk 0:00:32]} 29. e6 {[%clk 0:01:30]}  fxe6 {[%clk 0:00:23]} 30. Rxe6 {[%clk 0:01:29]}  Qc7+ {[%clk 0:00:21]} 31. Ne5 {[%clk 0:01:26]}  Rf7 {[%clk 0:00:05]} 32. Re8+ {[%clk 0:01:24]}  Rf8 {[%clk 0:00:03]} 33. Rxf8+ {[%clk 0:01:24]}  Kxf8 {[%clk 0:00:00]} 34. Ne6+ {[%clk 0:01:24]} 1-0


[Site "https://www.chess.com"]

[Event "Titled Tuesday Blitz August 08 Early 2023"]
[White "Shubenkova, Veronika"]
[Black "Hulka, Valentyn"]
[WhiteFideId "44124040"]
[BlackFideId "34107061"]
[WhiteElo "2520"]
[BlackElo "2706"]
[Result "0-1"]
[Round "11"]
[TimeControl "180+1"]
[Date "2023.08.08"]
[WhiteClock "0:00:10"]
[BlackClock "0:00:08"]
[Board "66"]

1. c4 {[%clk 0:03:00]}  e5 {[%clk 0:02:56]} 2. Nc3 {[%clk 0:03:00]}  Nf6 {[%clk 0:02:56]} 3. e4 {[%clk 0:03:00]}  Bc5 {[%clk 0:02:55]} 4. d3 {[%clk 0:02:59]}  Nc6 {[%clk 0:02:55]} 5. g3 {[%clk 0:02:54]}  d6 {[%clk 0:02:54]} 6. h3 {[%clk 0:02:53]}  O-O {[%clk 0:02:52]} 7. Bg2 {[%clk 0:02:53]}  a6 {[%clk 0:02:51]} 8. Nge2 {[%clk 0:02:53]}  Rb8 {[%clk 0:02:45]} 9. a4 {[%clk 0:02:53]}  a5 {[%clk 0:02:33]} 10. O-O {[%clk 0:02:52]}  Nd4 {[%clk 0:02:32]} 11. Nxd4 {[%clk 0:02:51]}  Bxd4 {[%clk 0:02:32]} 12. Ne2 {[%clk 0:02:52]}  Bb6 {[%clk 0:02:31]} 13. Kh2 {[%clk 0:02:51]}  Nd7 {[%clk 0:02:31]} 14. f4 {[%clk 0:02:51]}  Nc5 {[%clk 0:02:28]} 15. d4 {[%clk 0:02:48]}  exd4 {[%clk 0:02:24]} 16. Nxd4 {[%clk 0:02:48]}  Re8 {[%clk 0:02:24]} 17. Re1 {[%clk 0:02:44]}  Bd7 {[%clk 0:02:19]} 18. Nb5 {[%clk 0:02:43]}  Bc6 {[%clk 0:02:15]} 19. Qc2 {[%clk 0:02:41]}  Re7 {[%clk 0:01:59]} 20. Nc3 {[%clk 0:02:34]}  Qe8 {[%clk 0:01:17]} 21. Nd5 {[%clk 0:02:32]}  Bxd5 {[%clk 0:01:12]} 22. cxd5 {[%clk 0:02:32]}  f5 {[%clk 0:00:47]} 23. e5 {[%clk 0:01:40]}  dxe5 {[%clk 0:00:48]} 24. Be3 {[%clk 0:01:39]}  exf4 {[%clk 0:00:40]} 25. Bf2 {[%clk 0:01:34]}  fxg3+ {[%clk 0:00:37]} 26. Bxg3 {[%clk 0:01:35]}  f4 {[%clk 0:00:31]} 27. Bh4 {[%clk 0:01:35]}  g5 {[%clk 0:00:28]} 28. Rxe7 {[%clk 0:01:33]}  Qxe7 {[%clk 0:00:26]} 29. Re1 {[%clk 0:01:31]}  Qd6 {[%clk 0:00:21]} 30. Bf2 {[%clk 0:01:23]}  f3+ {[%clk 0:00:20]} 31. Bg3 {[%clk 0:01:23]}  Qf6 {[%clk 0:00:11]} 32. Bh1 {[%clk 0:01:12]}  Rf8 {[%clk 0:00:11]} 33. Rf1 {[%clk 0:01:06]}  g4 {[%clk 0:00:05]} 34. d6 {[%clk 0:01:06]}  cxd6 {[%clk 0:00:05]} 35. Qc4+ {[%clk 0:01:06]}  Qe6 {[%clk 0:00:06]} 36. Qb5 {[%clk 0:01:01]}  Qe2+ {[%clk 0:00:02]} 37. Qxe2 {[%clk 0:00:52]}  fxe2 {[%clk 0:00:03]} 38. Bd5+ {[%clk 0:00:51]}  Kg7 {[%clk 0:00:04]} 39. Rxf8 {[%clk 0:00:38]}  Kxf8 {[%clk 0:00:04]} 40. Bxd6+ {[%clk 0:00:38]}  Ke8 {[%clk 0:00:03]} 41. Bg3 {[%clk 0:00:37]}  Nd3 {[%clk 0:00:04]} 42. hxg4 {[%clk 0:00:32]}  e1=Q {[%clk 0:00:04]} 43. Bxe1 {[%clk 0:00:32]}  Nxe1 {[%clk 0:00:05]} 44. Be4 {[%clk 0:00:32]}  h6 {[%clk 0:00:05]} 45. Kg3 {[%clk 0:00:29]}  Bd4 {[%clk 0:00:05]} 46. b3 {[%clk 0:00:28]}  b6 {[%clk 0:00:05]} 47. Kf4 {[%clk 0:00:24]}  Ke7 {[%clk 0:00:06]} 48. Kf5 {[%clk 0:00:20]}  Kd6 {[%clk 0:00:05]} 49. g5 {[%clk 0:00:19]}  hxg5 {[%clk 0:00:05]} 50. Kxg5 {[%clk 0:00:20]}  Ke5 {[%clk 0:00:05]} 51. Bh7 {[%clk 0:00:18]}  Nf3+ {[%clk 0:00:05]} 52. Kg4 {[%clk 0:00:18]}  Nd2 {[%clk 0:00:06]} 53. Bg8 {[%clk 0:00:18]}  Bc3 {[%clk 0:00:07]} 54. Kg3 {[%clk 0:00:18]}  Bb4 {[%clk 0:00:07]} 55. Kf2 {[%clk 0:00:18]}  Kd4 {[%clk 0:00:08]} 56. Ke2 {[%clk 0:00:18]}  Kc3 {[%clk 0:00:09]} 57. Kd1 {[%clk 0:00:15]}  Nxb3 {[%clk 0:00:10]} 58. Bf7 {[%clk 0:00:14]}  Kb2 {[%clk 0:00:10]} 59. Be8 {[%clk 0:00:13]}  Nc5 {[%clk 0:00:11]} 60. Ke2 {[%clk 0:00:13]}  Kb3 {[%clk 0:00:11]} 61. Ke3 {[%clk 0:00:13]}  Nxa4 {[%clk 0:00:11]} 62. Bf7+ {[%clk 0:00:13]}  Kb2 {[%clk 0:00:11]} 63. Kd4 {[%clk 0:00:13]}  Nc5 {[%clk 0:00:12]} 64. Kc4 {[%clk 0:00:13]}  Be1 {[%clk 0:00:10]} 65. Kb5 {[%clk 0:00:13]}  Nb3 {[%clk 0:00:02]} 66. Bg8 {[%clk 0:00:07]}  Ka3 {[%clk 0:00:02]} 67. Kxb6 {[%clk 0:00:06]}  a4 {[%clk 0:00:02]} 68. Kb5 {[%clk 0:00:06]}  Nd4+ {[%clk 0:00:03]} 69. Kc5 {[%clk 0:00:05]}  Ne2 {[%clk 0:00:04]} 70. Kb5 {[%clk 0:00:04]}  Nc3+ {[%clk 0:00:04]} 71. Kc4 {[%clk 0:00:04]}  Kb2 {[%clk 0:00:05]} 72. Kd3 {[%clk 0:00:04]}  a3 {[%clk 0:00:05]} 73. Kd4 {[%clk 0:00:04]}  Bh4 {[%clk 0:00:06]} 74. Kd3 {[%clk 0:00:04]}  Bd8 {[%clk 0:00:07]} 75. Kd4 {[%clk 0:00:05]}  Na4 {[%clk 0:00:07]} 76. Kd3 {[%clk 0:00:05]}  Bb6 {[%clk 0:00:08]} 77. Bf7 {[%clk 0:00:04]}  Nc5+ {[%clk 0:00:09]} 78. Ke2 {[%clk 0:00:03]}  Nb3 {[%clk 0:00:09]} 79. Kd1 {[%clk 0:00:03]}  a2 {[%clk 0:00:10]} 80. Ke2 {[%clk 0:00:04]}  a1=Q {[%clk 0:00:10]} 81. Bg8 {[%clk 0:00:04]}  Qa6+ {[%clk 0:00:11]} 82. Kf3 {[%clk 0:00:03]}  Qd3+ {[%clk 0:00:11]} 83. Kg4 {[%clk 0:00:04]}  Qe4+ {[%clk 0:00:11]} 84. Kh5 {[%clk 0:00:05]}  Qf5+ {[%clk 0:00:11]} 85. Kh6 {[%clk 0:00:06]}  Be3+ {[%clk 0:00:12]} 86. Kg7 {[%clk 0:00:07]}  Bd4+ {[%clk 0:00:11]} 87. Kh6 {[%clk 0:00:06]}  Qg4 {[%clk 0:00:11]} 88. Bxb3 {[%clk 0:00:05]}  Qg7+ {[%clk 0:00:11]} 89. Kh5 {[%clk 0:00:06]}  Be3 {[%clk 0:00:12]} 90. Kh4 {[%clk 0:00:07]}  Kxb3 {[%clk 0:00:11]} 91. Kh3 {[%clk 0:00:07]}  Qa1 {[%clk 0:00:11]} 92. Kh2 {[%clk 0:00:08]}  Bd4 {[%clk 0:00:10]} 93. Kh3 {[%clk 0:00:09]}  Qg1 {[%clk 0:00:09]} 94. Kh4 {[%clk 0:00:10]}  Be3 {[%clk 0:00:09]} 95. Kh5 {[%clk 0:00:10]}  Qg5# {[%clk 0:00:08]} 0-1


[Site "https://www.chess.com"]

[Event "Titled Tuesday Blitz August 08 Early 2023"]
[White "jumpingknight20"]
[Black "Reprintsev, Alexander"]
[BlackFideId "14100541"]
[WhiteElo "2685"]
[BlackElo "2493"]
[Result "1-0"]
[Round "11"]
[TimeControl "180+1"]
[Date "2023.08.08"]
[WhiteClock "0:00:06"]
[BlackClock "0:00:00"]
[Board "67"]

1. e4 {[%clk 0:03:00]}  d5 {[%clk 0:02:59]} 2. exd5 {[%clk 0:03:01]}  Qxd5 {[%clk 0:02:57]} 3. Nc3 {[%clk 0:03:01]}  Qd6 {[%clk 0:02:57]} 4. d4 {[%clk 0:03:01]}  c6 {[%clk 0:02:57]} 5. Nf3 {[%clk 0:03:01]}  Bf5 {[%clk 0:02:55]} 6. g3 {[%clk 0:02:58]}  Nf6 {[%clk 0:02:51]} 7. Bg2 {[%clk 0:02:58]}  e6 {[%clk 0:02:47]} 8. O-O {[%clk 0:02:58]}  h6 {[%clk 0:02:46]} 9. Re1 {[%clk 0:02:58]}  Be7 {[%clk 0:02:45]} 10. Ne5 {[%clk 0:02:56]}  O-O {[%clk 0:02:44]} 11. Bf4 {[%clk 0:02:56]}  Qb4 {[%clk 0:02:44]} 12. Rb1 {[%clk 0:02:41]}  Rd8 {[%clk 0:02:41]} 13. Qe2 {[%clk 0:02:37]}  Nbd7 {[%clk 0:02:29]} 14. g4 {[%clk 0:02:22]}  Bh7 {[%clk 0:02:25]} 15. Nxf7 {[%clk 0:01:43]}  Kxf7 {[%clk 0:02:24]} 16. Qxe6+ {[%clk 0:01:40]}  Kf8 {[%clk 0:02:24]} 17. a3 {[%clk 0:01:41]}  Qxd4 {[%clk 0:02:19]} 18. Qxe7+ {[%clk 0:01:41]}  Kg8 {[%clk 0:02:19]} 19. Qd6 {[%clk 0:01:20]}  Qxd6 {[%clk 0:02:12]} 20. Bxd6 {[%clk 0:01:20]}  Nxg4 {[%clk 0:02:10]} 21. Re2 {[%clk 0:01:14]}  Nb6 {[%clk 0:02:07]} 22. Bc7 {[%clk 0:01:05]}  Re8 {[%clk 0:02:04]} 23. Rbe1 {[%clk 0:01:01]}  Rxe2 {[%clk 0:02:03]} 24. Rxe2 {[%clk 0:01:02]}  Rc8 {[%clk 0:01:49]} 25. Re7 {[%clk 0:01:00]}  Bxc2 {[%clk 0:01:39]} 26. Bh3 {[%clk 0:00:45]}  Bf5 {[%clk 0:01:29]} 27. Bxg4 {[%clk 0:00:46]}  Bxg4 {[%clk 0:01:28]} 28. Be5 {[%clk 0:00:47]}  g5 {[%clk 0:01:23]} 29. Rg7+ {[%clk 0:00:45]}  Kf8 {[%clk 0:01:22]} 30. Rh7 {[%clk 0:00:40]}  Nc4 {[%clk 0:01:22]} 31. Bf6 {[%clk 0:00:35]}  Nxb2 {[%clk 0:01:17]} 32. Ne4 {[%clk 0:00:32]}  Bf5 {[%clk 0:01:17]} 33. Rh8+ {[%clk 0:00:31]}  Kf7 {[%clk 0:01:16]} 34. Nd6+ {[%clk 0:00:32]}  Kxf6 {[%clk 0:01:16]} 35. Nxc8 {[%clk 0:00:33]}  Bxc8 {[%clk 0:01:04]} 36. Rxc8 {[%clk 0:00:33]}  Nc4 {[%clk 0:01:01]} 37. a4 {[%clk 0:00:29]}  a5 {[%clk 0:00:59]} 38. Rc7 {[%clk 0:00:28]}  Nd6 {[%clk 0:00:57]} 39. f3 {[%clk 0:00:28]}  Ke6 {[%clk 0:00:53]} 40. Kf2 {[%clk 0:00:28]}  Kd5 {[%clk 0:00:53]} 41. Ke3 {[%clk 0:00:28]}  b5 {[%clk 0:00:52]} 42. axb5 {[%clk 0:00:26]}  cxb5 {[%clk 0:00:52]} 43. Kd3 {[%clk 0:00:26]}  a4 {[%clk 0:00:48]} 44. Kc3 {[%clk 0:00:25]}  Ke5 {[%clk 0:00:39]} 45. Rh7 {[%clk 0:00:25]}  Nf5 {[%clk 0:00:39]} 46. Kb4 {[%clk 0:00:23]}  Kf4 {[%clk 0:00:39]} 47. Rf7 {[%clk 0:00:23]}  h5 {[%clk 0:00:36]} 48. h3 {[%clk 0:00:20]}  h4 {[%clk 0:00:35]} 49. Kxb5 {[%clk 0:00:16]}  a3 {[%clk 0:00:35]} 50. Kc4 {[%clk 0:00:14]}  a2 {[%clk 0:00:33]} 51. Ra7 {[%clk 0:00:15]}  Kxf3 {[%clk 0:00:33]} 52. Rxa2 {[%clk 0:00:14]}  Kg3 {[%clk 0:00:24]} 53. Ra3+ {[%clk 0:00:13]}  Kh2 {[%clk 0:00:24]} 54. Kd5 {[%clk 0:00:13]}  Ng3 {[%clk 0:00:24]} 55. Ke5 {[%clk 0:00:12]}  Kxh3 {[%clk 0:00:24]} 56. Kf6 {[%clk 0:00:13]}  g4 {[%clk 0:00:23]} 57. Kg5 {[%clk 0:00:13]}  Kg2 {[%clk 0:00:20]} 58. Kxg4 {[%clk 0:00:12]}  Kf2 {[%clk 0:00:19]} 59. Kxh4 {[%clk 0:00:11]}  Ne2 {[%clk 0:00:18]} 60. Kg4 {[%clk 0:00:12]}  Nd4 {[%clk 0:00:16]} 61. Kf4 {[%clk 0:00:11]}  Ne2+ {[%clk 0:00:16]} 62. Ke4 {[%clk 0:00:11]}  Ng3+ {[%clk 0:00:16]} 63. Ke5 {[%clk 0:00:11]}  Ne2 {[%clk 0:00:16]} 64. Rh3 {[%clk 0:00:10]}  Kg2 {[%clk 0:00:16]} 65. Re3 {[%clk 0:00:10]}  Kf2 {[%clk 0:00:16]} 66. Ke4 {[%clk 0:00:10]}  Ng3+ {[%clk 0:00:15]} 67. Kd3 {[%clk 0:00:11]}  Nf1 {[%clk 0:00:15]} 68. Re8 {[%clk 0:00:11]}  Ng3 {[%clk 0:00:12]} 69. Rf8+ {[%clk 0:00:11]}  Kg2 {[%clk 0:00:12]} 70. Ke3 {[%clk 0:00:12]}  Nf1+ {[%clk 0:00:12]} 71. Ke4 {[%clk 0:00:10]}  Ng3+ {[%clk 0:00:11]} 72. Kf4 {[%clk 0:00:10]}  Ne2+ {[%clk 0:00:11]} 73. Ke3 {[%clk 0:00:09]}  Ng3 {[%clk 0:00:10]} 74. Rg8 {[%clk 0:00:09]}  Kh3 {[%clk 0:00:09]} 75. Kf3 {[%clk 0:00:09]}  Nh5 {[%clk 0:00:08]} 76. Rg4 {[%clk 0:00:10]}  Nf6 {[%clk 0:00:05]} 77. Rf4 {[%clk 0:00:08]}  Nh5 {[%clk 0:00:02]} 78. Rd4 {[%clk 0:00:08]}  Nf6 {[%clk 0:00:02]} 79. Kf4 {[%clk 0:00:08]}  Kg2 {[%clk 0:00:00]} 80. Kg5 {[%clk 0:00:06]} 1-0


[Site "https://www.chess.com"]

[Event "Titled Tuesday Blitz August 08 Early 2023"]
[White "Rosenberg, Evan S"]
[Black "Komov, Roman"]
[WhiteFideId "2019299"]
[BlackFideId "24175714"]
[WhiteElo "2452"]
[BlackElo "2620"]
[Result "0-1"]
[Round "11"]
[TimeControl "180+1"]
[Date "2023.08.08"]
[WhiteClock "0:00:09"]
[BlackClock "0:00:36"]
[Board "71"]

1. e4 {[%clk 0:03:00]}  c6 {[%clk 0:02:58]} 2. Nf3 {[%clk 0:03:00]}  d5 {[%clk 0:02:58]} 3. d3 {[%clk 0:03:01]}  Qc7 {[%clk 0:02:48]} 4. Nc3 {[%clk 0:02:55]}  dxe4 {[%clk 0:02:47]} 5. dxe4 {[%clk 0:02:54]}  e5 {[%clk 0:02:45]} 6. Bc4 {[%clk 0:02:52]}  b5 {[%clk 0:02:44]} 7. Bb3 {[%clk 0:02:52]}  Be7 {[%clk 0:02:42]} 8. O-O {[%clk 0:02:50]}  Nf6 {[%clk 0:02:38]} 9. h3 {[%clk 0:02:50]}  O-O {[%clk 0:02:38]} 10. a4 {[%clk 0:02:46]}  b4 {[%clk 0:02:37]} 11. Na2 {[%clk 0:02:41]}  Na6 {[%clk 0:02:37]} 12. Re1 {[%clk 0:02:37]}  Nc5 {[%clk 0:02:36]} 13. Nd2 {[%clk 0:02:18]}  Nxb3 {[%clk 0:02:33]} 14. Nxb3 {[%clk 0:02:15]}  c5 {[%clk 0:02:27]} 15. Bg5 {[%clk 0:02:15]}  c4 {[%clk 0:02:24]} 16. Nd2 {[%clk 0:02:10]}  a5 {[%clk 0:02:24]} 17. Qf3 {[%clk 0:02:03]}  Be6 {[%clk 0:02:23]} 18. Nc1 {[%clk 0:02:00]}  Rfd8 {[%clk 0:02:20]} 19. Nf1 {[%clk 0:02:00]}  h6 {[%clk 0:02:18]} 20. Be3 {[%clk 0:01:53]}  Rd7 {[%clk 0:02:15]} 21. Ng3 {[%clk 0:01:52]}  Qc6 {[%clk 0:02:07]} 22. Nce2 {[%clk 0:01:44]}  Rad8 {[%clk 0:02:05]} 23. Kh2 {[%clk 0:01:40]}  Kh7 {[%clk 0:02:02]} 24. b3 {[%clk 0:01:23]}  cxb3 {[%clk 0:01:56]} 25. cxb3 {[%clk 0:01:23]}  Bxb3 {[%clk 0:01:57]} 26. Qf5+ {[%clk 0:01:23]}  Kg8 {[%clk 0:01:50]} 27. Qxe5 {[%clk 0:01:23]}  Ra8 {[%clk 0:01:24]} 28. Nd4 {[%clk 0:01:23]}  Qc4 {[%clk 0:01:09]} 29. Rac1 {[%clk 0:01:21]}  Qd3 {[%clk 0:01:08]} 30. Nxb3 {[%clk 0:01:16]}  Qxb3 {[%clk 0:01:09]} 31. f4 {[%clk 0:00:58]}  Qxa4 {[%clk 0:01:03]} 32. Nf5 {[%clk 0:00:54]}  Re8 {[%clk 0:00:44]} 33. Ra1 {[%clk 0:00:47]}  Qb3 {[%clk 0:00:44]} 34. Rxa5 {[%clk 0:00:47]}  Bd8 {[%clk 0:00:43]} 35. Qb5 {[%clk 0:00:16]}  Bxa5 {[%clk 0:00:42]} 36. Qxa5 {[%clk 0:00:17]}  Rxe4 {[%clk 0:00:43]} 37. Qa8+ {[%clk 0:00:12]}  Re8 {[%clk 0:00:42]} 38. Qf3 {[%clk 0:00:12]}  Qd5 {[%clk 0:00:40]} 39. Qg3 {[%clk 0:00:09]}  Qxf5 {[%clk 0:00:36]} 0-1


[Site "https://www.chess.com"]